[Event "Titled Tuesday Blitz August 15 Late 2023"]
[White "Bilan, Danila"]
[Black "Melikhov, Evgeny V."]
[WhiteFideId "24161918"]
[BlackFideId "4122046"]
[WhiteElo "2541"]
[BlackElo "2415"]
[Result "1-0"]
[Round "7"]
[TimeControl "180+1"]
[Date "2023.08.15"]
[WhiteClock "0:00:08"]
[BlackClock "0:00:04"]
[Board "77"]

1. d4 {[%clk 0:02:51]}  Nf6 {[%clk 0:02:59]} 2. Nf3 {[%clk 0:02:51]}  d5 {[%clk 0:02:59]} 3. c4 {[%clk 0:02:51]}  e6 {[%clk 0:02:59]} 4. Nc3 {[%clk 0:02:51]}  Bb4 {[%clk 0:02:59]} 5. Qb3 {[%clk 0:02:51]}  Nc6 {[%clk 0:02:55]} 6. a3 {[%clk 0:02:51]}  dxc4 {[%clk 0:02:52]} 7. Qxc4 {[%clk 0:02:50]}  Bd6 {[%clk 0:02:52]} 8. Bg5 {[%clk 0:02:49]}  h6 {[%clk 0:02:33]} 9. Bh4 {[%clk 0:02:47]}  g5 {[%clk 0:02:31]} 10. Bg3 {[%clk 0:02:47]}  Nh5 {[%clk 0:02:29]} 11. e3 {[%clk 0:02:29]}  Nxg3 {[%clk 0:02:25]} 12. hxg3 {[%clk 0:02:29]}  g4 {[%clk 0:02:15]} 13. Nd2 {[%clk 0:02:07]}  h5 {[%clk 0:02:14]} 14. Be2 {[%clk 0:01:57]}  e5 {[%clk 0:02:01]} 15. d5 {[%clk 0:01:54]}  Ne7 {[%clk 0:02:00]} 16. e4 {[%clk 0:01:51]}  Ng6 {[%clk 0:01:57]} 17. Nb5 {[%clk 0:01:45]}  h4 {[%clk 0:01:40]} 18. gxh4 {[%clk 0:01:34]}  Rxh4 {[%clk 0:01:37]} 19. O-O-O {[%clk 0:01:31]}  a6 {[%clk 0:01:29]} 20. Nxd6+ {[%clk 0:01:09]}  cxd6 {[%clk 0:01:28]} 21. Kb1 {[%clk 0:01:02]}  Bd7 {[%clk 0:01:26]} 22. Qb4 {[%clk 0:00:56]}  Qg5 {[%clk 0:01:01]} 23. Rxh4 {[%clk 0:00:41]}  Nxh4 {[%clk 0:00:59]} 24. g3 {[%clk 0:00:39]}  Nf3 {[%clk 0:00:49]} 25. Bxf3 {[%clk 0:00:35]}  gxf3 {[%clk 0:00:49]} 26. Qxd6 {[%clk 0:00:35]}  Rc8 {[%clk 0:00:43]} 27. Nxf3 {[%clk 0:00:23]}  Qg4 {[%clk 0:00:29]} 28. Rh1 {[%clk 0:00:16]}  Qxe4+ {[%clk 0:00:21]} 29. Ka1 {[%clk 0:00:16]}  Rc1+ {[%clk 0:00:09]} 30. Rxc1 {[%clk 0:00:14]}  Qxf3 {[%clk 0:00:09]} 31. Qxe5+ {[%clk 0:00:14]}  Kf8 {[%clk 0:00:09]} 32. Qh8+ {[%clk 0:00:10]}  Ke7 {[%clk 0:00:09]} 33. Re1+ {[%clk 0:00:11]}  Kd6 {[%clk 0:00:08]} 34. Qe5+ {[%clk 0:00:10]}  Kc5 {[%clk 0:00:08]} 35. d6+ {[%clk 0:00:08]}  Kb6 {[%clk 0:00:07]} 36. Qd4+ {[%clk 0:00:08]}  Kc6 {[%clk 0:00:05]} 37. Rc1+ {[%clk 0:00:08]}  Kb5 {[%clk 0:00:04]} 38. Qb4# {[%clk 0:00:08]} 1-0


[Site "https://www.chess.com"]

[Event "Titled Tuesday Blitz August 15 Late 2023"]
[White "Todorovic, Bojan"]
[Black "Kupervaser, Erez"]
[WhiteFideId "917087"]
[BlackFideId "2814587"]
[WhiteElo "2419"]
[BlackElo "2528"]
[Result "1-0"]
[Round "7"]
[TimeControl "180+1"]
[Date "2023.08.15"]
[WhiteClock "0:01:23"]
[BlackClock "0:00:37"]
[Board "78"]

1. d4 {[%clk 0:02:59]}  d5 {[%clk 0:02:54]} 2. c4 {[%clk 0:02:58]}  c6 {[%clk 0:02:54]} 3. Nf3 {[%clk 0:02:58]}  Nf6 {[%clk 0:02:55]} 4. Nc3 {[%clk 0:02:58]}  e6 {[%clk 0:02:55]} 5. e3 {[%clk 0:02:53]}  Nbd7 {[%clk 0:02:54]} 6. Qc2 {[%clk 0:02:52]}  Bd6 {[%clk 0:02:55]} 7. b3 {[%clk 0:02:48]}  O-O {[%clk 0:02:53]} 8. Be2 {[%clk 0:02:47]}  Re8 {[%clk 0:02:52]} 9. O-O {[%clk 0:02:46]}  a6 {[%clk 0:02:52]} 10. a4 {[%clk 0:02:42]}  Qe7 {[%clk 0:02:52]} 11. Bb2 {[%clk 0:02:41]}  e5 {[%clk 0:02:52]} 12. cxd5 {[%clk 0:02:37]}  cxd5 {[%clk 0:02:52]} 13. dxe5 {[%clk 0:02:37]}  Nxe5 {[%clk 0:02:52]} 14. Nd4 {[%clk 0:02:27]}  g6 {[%clk 0:02:34]} 15. Rac1 {[%clk 0:02:10]}  Neg4 {[%clk 0:02:20]} 16. g3 {[%clk 0:02:03]}  h5 {[%clk 0:02:13]} 17. Bf3 {[%clk 0:01:58]}  Ne5 {[%clk 0:02:11]} 18. Bg2 {[%clk 0:01:56]}  h4 {[%clk 0:02:04]} 19. Nxd5 {[%clk 0:01:53]}  Nxd5 {[%clk 0:02:04]} 20. Bxd5 {[%clk 0:01:53]}  hxg3 {[%clk 0:02:02]} 21. hxg3 {[%clk 0:01:52]}  Bh3 {[%clk 0:02:01]} 22. Bg2 {[%clk 0:01:48]}  Bxg2 {[%clk 0:01:54]} 23. Kxg2 {[%clk 0:01:48]}  Ng4 {[%clk 0:01:43]} 24. Qe2 {[%clk 0:01:39]}  Qg5 {[%clk 0:01:26]} 25. Nf3 {[%clk 0:01:37]}  Nxe3+ {[%clk 0:01:10]} 26. Qxe3 {[%clk 0:01:29]}  Rxe3 {[%clk 0:00:50]} 27. Nxg5 {[%clk 0:01:29]}  Rxb3 {[%clk 0:00:51]} 28. Bf6 {[%clk 0:01:25]}  Re8 {[%clk 0:00:37]} 29. Rh1 {[%clk 0:01:23]} 1-0


[Site "https://www.chess.com"]

[Event "Titled Tuesday Blitz August 15 Late 2023"]
[White "Balla, Tamas-Kristof"]
[Black "Grinev, Valeriy"]
[WhiteFideId "1208497"]
[BlackFideId "14117517"]
[WhiteElo "2411"]
[BlackElo "2526"]
[Result "1-0"]
[Round "7"]
[TimeControl "180+1"]
[Date "2023.08.15"]
[WhiteClock "0:00:08"]
[BlackClock "0:00:43"]
[Board "79"]

1. e4 {[%clk 0:03:00]}  c5 {[%clk 0:03:00]} 2. c3 {[%clk 0:02:57]}  Nc6 {[%clk 0:02:58]} 3. d4 {[%clk 0:02:57]}  cxd4 {[%clk 0:02:59]} 4. cxd4 {[%clk 0:02:58]}  Nf6 {[%clk 0:02:57]} 5. Nc3 {[%clk 0:02:54]}  d6 {[%clk 0:02:51]} 6. h3 {[%clk 0:02:50]}  a6 {[%clk 0:02:50]} 7. Nf3 {[%clk 0:02:50]}  e5 {[%clk 0:02:47]} 8. d5 {[%clk 0:02:41]}  Ne7 {[%clk 0:02:45]} 9. Be2 {[%clk 0:02:38]}  Ng6 {[%clk 0:02:46]} 10. O-O {[%clk 0:02:30]}  h6 {[%clk 0:02:45]} 11. Be3 {[%clk 0:02:29]}  Bd7 {[%clk 0:02:39]} 12. a4 {[%clk 0:02:24]}  Be7 {[%clk 0:02:38]} 13. Qd2 {[%clk 0:02:18]}  Rc8 {[%clk 0:02:33]} 14. Ne1 {[%clk 0:02:03]}  Rxc3 {[%clk 0:02:32]} 15. Qxc3 {[%clk 0:01:53]}  Nxe4 {[%clk 0:02:33]} 16. Qc2 {[%clk 0:01:49]}  Nf6 {[%clk 0:02:27]} 17. Qb3 {[%clk 0:01:15]}  Qa8 {[%clk 0:02:19]} 18. Rc1 {[%clk 0:01:13]}  O-O {[%clk 0:02:18]} 19. Nc2 {[%clk 0:00:59]}  Rc8 {[%clk 0:02:18]} 20. Nb4 {[%clk 0:00:59]}  b5 {[%clk 0:02:08]} 21. Nc6 {[%clk 0:00:45]}  Bxc6 {[%clk 0:02:05]} 22. dxc6 {[%clk 0:00:46]}  Rxc6 {[%clk 0:02:04]} 23. Rxc6 {[%clk 0:00:42]}  Qxc6 {[%clk 0:02:04]} 24. axb5 {[%clk 0:00:42]}  axb5 {[%clk 0:02:02]} 25. Bxb5 {[%clk 0:00:42]}  Qe4 {[%clk 0:01:53]} 26. Bd3 {[%clk 0:00:38]}  Qh4 {[%clk 0:01:47]} 27. Bxg6 {[%clk 0:00:37]}  d5 {[%clk 0:01:46]} 28. Bb1 {[%clk 0:00:29]}  e4 {[%clk 0:01:46]} 29. Bd4 {[%clk 0:00:26]}  Nh5 {[%clk 0:01:45]} 30. Qxd5 {[%clk 0:00:23]}  Nf4 {[%clk 0:01:42]} 31. Qxe4 {[%clk 0:00:18]}  g6 {[%clk 0:01:36]} 32. Qa8+ {[%clk 0:00:17]}  Bd8 {[%clk 0:01:34]} 33. Bb6 {[%clk 0:00:16]}  Nxh3+ {[%clk 0:01:14]} 34. gxh3 {[%clk 0:00:16]}  Qxh3 {[%clk 0:01:15]} 35. Qxd8+ {[%clk 0:00:16]}  Kh7 {[%clk 0:01:14]} 36. Qd3 {[%clk 0:00:16]}  Qe6 {[%clk 0:01:11]} 37. Bd4 {[%clk 0:00:14]}  Qg4+ {[%clk 0:01:11]} 38. Qg3 {[%clk 0:00:08]}  Qxd4 {[%clk 0:01:12]} 39. Re1 {[%clk 0:00:09]}  Qxb2 {[%clk 0:01:11]} 40. Be4 {[%clk 0:00:07]}  Qf6 {[%clk 0:01:11]} 41. Bd3 {[%clk 0:00:07]}  h5 {[%clk 0:01:11]} 42. Re3 {[%clk 0:00:05]}  Qa1+ {[%clk 0:01:09]} 43. Kg2 {[%clk 0:00:05]}  Qd4 {[%clk 0:01:10]} 44. Rf3 {[%clk 0:00:05]}  f5 {[%clk 0:01:07]} 45. Bxf5 {[%clk 0:00:04]}  gxf5 {[%clk 0:01:08]} 46. Rxf5 {[%clk 0:00:04]}  Qe4+ {[%clk 0:01:08]} 47. Rf3 {[%clk 0:00:05]}  h4 {[%clk 0:01:08]} 48. Qf4 {[%clk 0:00:05]}  Qg6+ {[%clk 0:01:07]} 49. Kh2 {[%clk 0:00:06]}  Kg7 {[%clk 0:00:55]} 50. Qe5+ {[%clk 0:00:06]}  Kg8 {[%clk 0:00:52]} 51. Qf5 {[%clk 0:00:06]}  Qd6+ {[%clk 0:00:51]} 52. Qf4 {[%clk 0:00:07]}  Qg6 {[%clk 0:00:48]} 53. Qxh4 {[%clk 0:00:07]}  Qc2 {[%clk 0:00:44]} 54. Qg4+ {[%clk 0:00:07]}  Kh8 {[%clk 0:00:42]} 55. Rh3+ {[%clk 0:00:07]}  Qh7 {[%clk 0:00:43]} 56. Qc8+ {[%clk 0:00:06]}  Kg7 {[%clk 0:00:43]} 57. Qc7+ {[%clk 0:00:06]}  Kf6 {[%clk 0:00:44]} 58. Qxh7 {[%clk 0:00:07]}  Kg5 {[%clk 0:00:44]} 59. Qe7+ {[%clk 0:00:06]}  Kf4 {[%clk 0:00:45]} 60. Qe3+ {[%clk 0:00:06]}  Kg4 {[%clk 0:00:46]} 61. Rg3+ {[%clk 0:00:06]}  Kf5 {[%clk 0:00:46]} 62. Rg5+ {[%clk 0:00:06]}  Kf6 {[%clk 0:00:47]} 63. Qe5+ {[%clk 0:00:07]}  Kf7 {[%clk 0:00:43]} 64. Rg7+ {[%clk 0:00:08]} 1-0


[Site "https://www.chess.com"]

[Event "Titled Tuesday Blitz August 15 Late 2023"]
[White "Mikhalsky, Vladimir"]
[Black "Grebeniuk, Semen"]
[WhiteFideId "14144352"]
[BlackFideId "14117509"]
[WhiteElo "2396"]
[BlackElo "2521"]
[Result "0-1"]
[Round "7"]
[TimeControl "180+1"]
[Date "2023.08.15"]
[WhiteClock "0:00:04"]
[BlackClock "0:00:11"]
[Board "80"]

1. d4 {[%clk 0:02:59]}  f5 {[%clk 0:02:59]} 2. Bg5 {[%clk 0:02:58]}  g6 {[%clk 0:02:59]} 3. h4 {[%clk 0:02:57]}  Nh6 {[%clk 0:02:59]} 4. h5 {[%clk 0:02:55]}  Nf7 {[%clk 0:03:00]} 5. Bd2 {[%clk 0:02:45]}  Bg7 {[%clk 0:02:58]} 6. Nf3 {[%clk 0:02:40]}  d6 {[%clk 0:02:56]} 7. Nc3 {[%clk 0:02:37]}  c6 {[%clk 0:02:54]} 8. e4 {[%clk 0:02:36]}  e5 {[%clk 0:02:40]} 9. d5 {[%clk 0:02:28]}  f4 {[%clk 0:02:33]} 10. dxc6 {[%clk 0:02:22]}  bxc6 {[%clk 0:02:32]} 11. Bc4 {[%clk 0:02:22]}  Qe7 {[%clk 0:02:31]} 12. Qe2 {[%clk 0:02:09]}  Be6 {[%clk 0:02:30]} 13. O-O-O {[%clk 0:02:07]}  g5 {[%clk 0:02:19]} 14. g3 {[%clk 0:02:00]}  h6 {[%clk 0:02:06]} 15. Rhg1 {[%clk 0:01:47]}  fxg3 {[%clk 0:01:38]} 16. Rxg3 {[%clk 0:01:36]}  O-O {[%clk 0:01:35]} 17. Nh2 {[%clk 0:01:35]}  Kh7 {[%clk 0:01:26]} 18. Ng4 {[%clk 0:01:32]}  Nd7 {[%clk 0:01:24]} 19. Ne3 {[%clk 0:01:31]}  Nf6 {[%clk 0:01:19]} 20. Bxe6 {[%clk 0:01:26]}  Qxe6 {[%clk 0:01:19]} 21. Nf5 {[%clk 0:01:26]}  Rfd8 {[%clk 0:01:17]} 22. Kb1 {[%clk 0:01:24]}  d5 {[%clk 0:01:09]} 23. Nxg7 {[%clk 0:01:21]}  Kxg7 {[%clk 0:01:08]} 24. exd5 {[%clk 0:01:19]}  cxd5 {[%clk 0:01:09]} 25. f4 {[%clk 0:01:16]}  Ne4 {[%clk 0:00:35]} 26. Nxe4 {[%clk 0:01:13]}  exf4 {[%clk 0:00:29]} 27. Bc3+ {[%clk 0:01:10]}  Kf8 {[%clk 0:00:19]} 28. Bb4+ {[%clk 0:00:47]}  Kg8 {[%clk 0:00:19]} 29. Nc3 {[%clk 0:00:22]}  Qxe2 {[%clk 0:00:18]} 30. Nxe2 {[%clk 0:00:23]}  fxg3 {[%clk 0:00:19]} 31. Nxg3 {[%clk 0:00:23]}  Ne5 {[%clk 0:00:12]} 32. Nf5 {[%clk 0:00:23]}  Kh7 {[%clk 0:00:13]} 33. Bc3 {[%clk 0:00:22]}  Nc4 {[%clk 0:00:09]} 34. b3 {[%clk 0:00:19]}  Nb6 {[%clk 0:00:08]} 35. Ne7 {[%clk 0:00:16]}  Rd7 {[%clk 0:00:07]} 36. Bb4 {[%clk 0:00:15]}  Re8 {[%clk 0:00:06]} 37. Ng6 {[%clk 0:00:14]}  d4 {[%clk 0:00:06]} 38. Nf8+ {[%clk 0:00:13]}  Rxf8 {[%clk 0:00:06]} 39. Bxf8 {[%clk 0:00:14]}  Nd5 {[%clk 0:00:07]} 40. Bc5 {[%clk 0:00:14]}  Nc3+ {[%clk 0:00:06]} 41. Kb2 {[%clk 0:00:14]}  Nxd1+ {[%clk 0:00:07]} 42. Kc1 {[%clk 0:00:13]}  d3 {[%clk 0:00:08]} 43. Kxd1 {[%clk 0:00:12]}  dxc2+ {[%clk 0:00:08]} 44. Kxc2 {[%clk 0:00:12]}  Rc7 {[%clk 0:00:08]} 45. b4 {[%clk 0:00:12]}  Kg7 {[%clk 0:00:09]} 46. Kd3 {[%clk 0:00:12]}  Kf6 {[%clk 0:00:09]} 47. Ke4 {[%clk 0:00:12]}  g4 {[%clk 0:00:10]} 48. Kf4 {[%clk 0:00:12]}  g3 {[%clk 0:00:10]} 49. Kxg3 {[%clk 0:00:12]}  Kg5 {[%clk 0:00:10]} 50. Kf3 {[%clk 0:00:11]}  Kxh5 {[%clk 0:00:10]} 51. Ke4 {[%clk 0:00:11]}  Kg4 {[%clk 0:00:11]} 52. Kd5 {[%clk 0:00:12]}  h5 {[%clk 0:00:11]} 53. Kd6 {[%clk 0:00:12]}  Rh7 {[%clk 0:00:12]} 54. b5 {[%clk 0:00:11]}  h4 {[%clk 0:00:12]} 55. a4 {[%clk 0:00:11]}  h3 {[%clk 0:00:13]} 56. Bg1 {[%clk 0:00:11]}  Kf3 {[%clk 0:00:13]} 57. Bh2 {[%clk 0:00:10]}  Kg2 {[%clk 0:00:12]} 58. Be5 {[%clk 0:00:10]}  Rh5 {[%clk 0:00:11]} 59. Bf4 {[%clk 0:00:10]}  Rh4 {[%clk 0:00:11]} 60. Be5 {[%clk 0:00:07]}  Rxa4 {[%clk 0:00:10]} 61. Kc6 {[%clk 0:00:07]}  h2 {[%clk 0:00:09]} 62. Bxh2 {[%clk 0:00:06]}  Kxh2 {[%clk 0:00:10]} 63. Kb7 {[%clk 0:00:07]}  Kg3 {[%clk 0:00:09]} 64. Kc6 {[%clk 0:00:07]}  Kf3 {[%clk 0:00:10]} 65. Kc5 {[%clk 0:00:07]}  Ke3 {[%clk 0:00:10]} 66. Kd5 {[%clk 0:00:07]}  Kd3 {[%clk 0:00:10]} 67. Kc5 {[%clk 0:00:07]}  Kc3 {[%clk 0:00:10]} 68. Kc6 {[%clk 0:00:04]}  Kb4 {[%clk 0:00:11]} 0-1


[Site "https://www.chess.com"]

[Event "Titled Tuesday Blitz August 15 Late 2023"]
[White "Dr_Pepper18"]
[Black "Arutla, Aditya"]
[BlackFideId "30961998"]
[WhiteElo "2325"]
[BlackElo "2507"]
[Result "1-0"]
[Round "7"]
[TimeControl "180+1"]
[Date "2023.08.15"]
[WhiteClock "0:00:20"]
[BlackClock "0:00:01"]
[Board "84"]

1. d4 {[%clk 0:03:00]}  d5 {[%clk 0:02:59]} 2. c4 {[%clk 0:03:01]}  c6 {[%clk 0:02:59]} 3. Nc3 {[%clk 0:03:00]}  Nf6 {[%clk 0:03:00]} 4. e3 {[%clk 0:03:00]}  e6 {[%clk 0:02:59]} 5. Nf3 {[%clk 0:03:00]}  Nbd7 {[%clk 0:02:59]} 6. Qc2 {[%clk 0:03:01]}  Bd6 {[%clk 0:02:59]} 7. g4 {[%clk 0:03:01]}  h6 {[%clk 0:02:55]} 8. Rg1 {[%clk 0:03:01]}  e5 {[%clk 0:02:49]} 9. cxd5 {[%clk 0:03:01]}  cxd5 {[%clk 0:02:47]} 10. Nb5 {[%clk 0:03:01]}  Bb8 {[%clk 0:02:48]} 11. g5 {[%clk 0:03:00]}  hxg5 {[%clk 0:02:46]} 12. Nxg5 {[%clk 0:03:01]}  e4 {[%clk 0:02:40]} 13. Bd2 {[%clk 0:03:00]}  a6 {[%clk 0:02:38]} 14. Rc1 {[%clk 0:02:59]}  Bxh2 {[%clk 0:02:17]} 15. Nc7+ {[%clk 0:02:36]}  Bxc7 {[%clk 0:02:05]} 16. Qxc7 {[%clk 0:02:37]}  Qxc7 {[%clk 0:02:05]} 17. Rxc7 {[%clk 0:02:36]}  Ng8 {[%clk 0:01:52]} 18. f3 {[%clk 0:02:23]}  exf3 {[%clk 0:01:49]} 19. Nxf3 {[%clk 0:02:20]}  g6 {[%clk 0:01:44]} 20. Bb4 {[%clk 0:01:48]}  Ngf6 {[%clk 0:01:32]} 21. Ne5 {[%clk 0:01:44]}  a5 {[%clk 0:01:22]} 22. Ba3 {[%clk 0:01:38]}  Rh2 {[%clk 0:00:59]} 23. Bb5 {[%clk 0:01:19]}  Kd8 {[%clk 0:00:51]} 24. Bd6 {[%clk 0:01:12]}  Rxb2 {[%clk 0:00:40]} 25. Bd3 {[%clk 0:00:45]}  Ke8 {[%clk 0:00:19]} 26. Rh1 {[%clk 0:00:40]}  Nh5 {[%clk 0:00:14]} 27. Nxg6 {[%clk 0:00:37]}  Ndf6 {[%clk 0:00:05]} 28. Ne5 {[%clk 0:00:21]}  Rxa2 {[%clk 0:00:01]} 29. Re7+ {[%clk 0:00:20]}  Kd8 {[%clk 0:00:01]} 30. Nxf7# {[%clk 0:00:20]} 1-0


[Site "https://www.chess.com"]

[Event "Titled Tuesday Blitz August 15 Late 2023"]
[White "Kohler, Aran"]
[Black "Hristodoulou, Panagiotis"]
[WhiteFideId "1002856"]
[BlackFideId "4214340"]
[WhiteElo "2260"]
[BlackElo "2503"]
[Result "0-1"]
[Round "7"]
[TimeControl "180+1"]
[Date "2023.08.15"]
[WhiteClock "0:00:07"]
[BlackClock "0:01:22"]
[Board "85"]

1. d4 {[%clk 0:03:00]}  g6 {[%clk 0:02:54]} 2. c3 {[%clk 0:02:59]}  c5 {[%clk 0:02:53]} 3. dxc5 {[%clk 0:02:53]}  Bg7 {[%clk 0:02:52]} 4. Nf3 {[%clk 0:02:47]}  Nf6 {[%clk 0:02:51]} 5. Nbd2 {[%clk 0:02:44]}  a5 {[%clk 0:02:51]} 6. a4 {[%clk 0:02:43]}  Na6 {[%clk 0:02:51]} 7. Nb3 {[%clk 0:02:42]}  Qc7 {[%clk 0:02:38]} 8. Qd4 {[%clk 0:02:27]}  Nh5 {[%clk 0:02:25]} 9. Qc4 {[%clk 0:01:57]}  d5 {[%clk 0:02:25]} 10. Qb5+ {[%clk 0:01:33]}  Bd7 {[%clk 0:02:26]} 11. Qxa5 {[%clk 0:01:32]}  Qxa5 {[%clk 0:02:23]} 12. Nxa5 {[%clk 0:01:32]}  Nxc5 {[%clk 0:02:24]} 13. b4 {[%clk 0:01:28]}  Bxc3+ {[%clk 0:02:23]} 14. Bd2 {[%clk 0:01:26]}  Bxd2+ {[%clk 0:02:22]} 15. Nxd2 {[%clk 0:01:24]}  Nxa4 {[%clk 0:02:20]} 16. e3 {[%clk 0:01:15]}  b6 {[%clk 0:01:59]} 17. Nab3 {[%clk 0:01:14]}  O-O {[%clk 0:01:59]} 18. Be2 {[%clk 0:01:13]}  Nf6 {[%clk 0:01:59]} 19. O-O {[%clk 0:01:13]}  Nc3 {[%clk 0:01:59]} 20. Bf3 {[%clk 0:01:08]}  e6 {[%clk 0:01:53]} 21. Nd4 {[%clk 0:01:04]}  e5 {[%clk 0:01:51]} 22. N4b3 {[%clk 0:01:04]}  Be6 {[%clk 0:01:50]} 23. Rxa8 {[%clk 0:00:57]}  Rxa8 {[%clk 0:01:50]} 24. Ra1 {[%clk 0:00:57]}  Rxa1+ {[%clk 0:01:43]} 25. Nxa1 {[%clk 0:00:58]}  Na2 {[%clk 0:01:44]} 26. b5 {[%clk 0:00:54]}  Nc3 {[%clk 0:01:44]} 27. h3 {[%clk 0:00:46]}  Nxb5 {[%clk 0:01:44]} 28. g4 {[%clk 0:00:43]}  g5 {[%clk 0:01:41]} 29. Be2 {[%clk 0:00:43]}  Nc3 {[%clk 0:01:40]} 30. Ba6 {[%clk 0:00:43]}  Nd7 {[%clk 0:01:41]} 31. Nab3 {[%clk 0:00:42]}  Nc5 {[%clk 0:01:40]} 32. Bf1 {[%clk 0:00:18]}  Kf8 {[%clk 0:01:31]} 33. Nxc5 {[%clk 0:00:14]}  bxc5 {[%clk 0:01:32]} 34. f3 {[%clk 0:00:14]}  Ke7 {[%clk 0:01:22]} 35. Kf2 {[%clk 0:00:14]}  f5 {[%clk 0:01:19]} 36. gxf5 {[%clk 0:00:10]}  Bxf5 {[%clk 0:01:20]} 37. e4 {[%clk 0:00:09]}  dxe4 {[%clk 0:01:20]} 38. fxe4 {[%clk 0:00:09]}  Nxe4+ {[%clk 0:01:21]} 39. Nxe4 {[%clk 0:00:09]}  Bxe4 {[%clk 0:01:22]} 40. Bc4 {[%clk 0:00:08]}  Bf5 {[%clk 0:01:22]} 41. Kg3 {[%clk 0:00:08]}  h6 {[%clk 0:01:22]} 42. h4 {[%clk 0:00:08]}  Kd6 {[%clk 0:01:21]} 43. hxg5 {[%clk 0:00:08]}  hxg5 {[%clk 0:01:21]} 44. Kf3 {[%clk 0:00:07]}  Kc7 {[%clk 0:01:22]} 0-1


[Site "https://www.chess.com"]

[Event "Titled Tuesday Blitz August 15 Late 2023"]
[White "elpera"]
[Black "Kovacevic, Radmila"]
[BlackFideId "933171"]
[WhiteElo "2500"]
[BlackElo "2249"]
[Result "0-1"]
[Round "7"]
[TimeControl "180+1"]
[Date "2023.08.15"]
[WhiteClock "0:00:00"]
[BlackClock "0:00:30"]
[Board "86"]

1. c4 {[%clk 0:03:00]}  e5 {[%clk 0:02:59]} 2. Nc3 {[%clk 0:02:56]}  Nc6 {[%clk 0:02:58]} 3. g3 {[%clk 0:02:56]}  a6 {[%clk 0:02:57]} 4. Bg2 {[%clk 0:02:55]}  Bc5 {[%clk 0:02:57]} 5. e3 {[%clk 0:02:54]}  Ba7 {[%clk 0:02:56]} 6. Nge2 {[%clk 0:02:54]}  h5 {[%clk 0:02:54]} 7. h3 {[%clk 0:02:51]}  d6 {[%clk 0:02:51]} 8. d4 {[%clk 0:02:44]}  h4 {[%clk 0:02:46]} 9. g4 {[%clk 0:02:44]}  f5 {[%clk 0:02:45]} 10. d5 {[%clk 0:02:38]}  Nce7 {[%clk 0:02:41]} 11. g5 {[%clk 0:02:33]}  e4 {[%clk 0:02:22]} 12. Nf4 {[%clk 0:02:25]}  Kf7 {[%clk 0:02:11]} 13. b3 {[%clk 0:02:11]}  Ng6 {[%clk 0:02:11]} 14. Bb2 {[%clk 0:02:03]}  Qxg5 {[%clk 0:02:08]} 15. Nxg6 {[%clk 0:01:50]}  Qxg6 {[%clk 0:02:02]} 16. Rg1 {[%clk 0:01:46]}  Rh5 {[%clk 0:01:59]} 17. Ne2 {[%clk 0:01:30]}  Rg5 {[%clk 0:01:40]} 18. Nf4 {[%clk 0:01:30]}  Qh7 {[%clk 0:01:36]} 19. Qe2 {[%clk 0:01:05]}  Ne7 {[%clk 0:01:22]} 20. O-O-O {[%clk 0:01:02]}  Bd7 {[%clk 0:01:19]} 21. Ne6 {[%clk 0:00:35]}  Bxe6 {[%clk 0:01:11]} 22. dxe6+ {[%clk 0:00:36]}  Kxe6 {[%clk 0:01:10]} 23. Bxe4 {[%clk 0:00:35]}  Rxg1 {[%clk 0:01:04]} 24. Bd5+ {[%clk 0:00:34]}  Kd7 {[%clk 0:00:56]} 25. Rxg1 {[%clk 0:00:33]}  g6 {[%clk 0:00:55]} 26. Bxb7 {[%clk 0:00:20]}  Rb8 {[%clk 0:00:50]} 27. Bxa6 {[%clk 0:00:20]}  c6 {[%clk 0:00:49]} 28. c5 {[%clk 0:00:08]}  Bxc5 {[%clk 0:00:47]} 29. Bc4 {[%clk 0:00:07]}  d5 {[%clk 0:00:45]} 30. Bd3 {[%clk 0:00:07]}  Bd6 {[%clk 0:00:43]} 31. Kb1 {[%clk 0:00:04]}  Qf7 {[%clk 0:00:41]} 32. Rd1 {[%clk 0:00:04]}  Kc7 {[%clk 0:00:34]} 33. f3 {[%clk 0:00:03]}  Qe6 {[%clk 0:00:31]} 34. e4 {[%clk 0:00:02]}  fxe4 {[%clk 0:00:31]} 35. fxe4 {[%clk 0:00:02]}  Qxh3 {[%clk 0:00:31]} 36. exd5 {[%clk 0:00:02]}  Nxd5 {[%clk 0:00:32]} 37. Bxg6 {[%clk 0:00:00]}  Nc3+ {[%clk 0:00:30]} 0-1


[Site "https://www.chess.com"]

[Event "Titled Tuesday Blitz August 15 Late 2023"]
[White "BeautiFullMindChess"]
[Black "arenal72"]
[WhiteElo "2229"]
[BlackElo "2495"]
[Result "0-1"]
[Round "7"]
[TimeControl "180+1"]
[Date "2023.08.15"]
[WhiteClock "0:00:02"]
[BlackClock "0:00:50"]
[Board "87"]

1. e4 {[%clk 0:02:35]}  Nc6 {[%clk 0:02:53]} 2. Nf3 {[%clk 0:02:33]}  d6 {[%clk 0:02:53]} 3. d4 {[%clk 0:02:25]}  Nf6 {[%clk 0:02:52]} 4. Nc3 {[%clk 0:02:19]}  g6 {[%clk 0:02:47]} 5. Bb5 {[%clk 0:02:19]}  a6 {[%clk 0:02:43]} 6. Bxc6+ {[%clk 0:02:19]}  bxc6 {[%clk 0:02:42]} 7. h3 {[%clk 0:02:20]}  Bg7 {[%clk 0:02:42]} 8. Qd3 {[%clk 0:02:19]}  O-O {[%clk 0:02:41]} 9. O-O {[%clk 0:02:20]}  a5 {[%clk 0:02:40]} 10. Re1 {[%clk 0:02:15]}  Nd7 {[%clk 0:02:34]} 11. Qc4 {[%clk 0:02:13]}  c5 {[%clk 0:02:31]} 12. dxc5 {[%clk 0:01:37]}  Nxc5 {[%clk 0:02:27]} 13. e5 {[%clk 0:01:32]}  Ne6 {[%clk 0:02:11]} 14. Qh4 {[%clk 0:01:14]}  Bb7 {[%clk 0:01:42]} 15. Ng5 {[%clk 0:00:55]}  Nxg5 {[%clk 0:01:41]} 16. Bxg5 {[%clk 0:00:54]}  f6 {[%clk 0:01:36]} 17. exf6 {[%clk 0:00:49]}  Bxf6 {[%clk 0:01:36]} 18. Bxf6 {[%clk 0:00:36]}  Rxf6 {[%clk 0:01:31]} 19. Qc4+ {[%clk 0:00:19]}  Kg7 {[%clk 0:01:27]} 20. Nd5 {[%clk 0:00:17]}  Bxd5 {[%clk 0:01:22]} 21. Qxd5 {[%clk 0:00:18]}  e5 {[%clk 0:01:21]} 22. c4 {[%clk 0:00:16]}  Rb8 {[%clk 0:01:20]} 23. b3 {[%clk 0:00:15]}  a4 {[%clk 0:01:19]} 24. Re3 {[%clk 0:00:13]}  Qf8 {[%clk 0:01:13]} 25. Rd1 {[%clk 0:00:12]}  Rxf2 {[%clk 0:01:10]} 26. c5 {[%clk 0:00:10]}  Rf6 {[%clk 0:01:04]} 27. bxa4 {[%clk 0:00:08]}  Rb2 {[%clk 0:00:56]} 28. Rd2 {[%clk 0:00:08]}  Rf1+ {[%clk 0:00:54]} 29. Kh2 {[%clk 0:00:07]}  Qf4+ {[%clk 0:00:54]} 30. Rg3 {[%clk 0:00:06]}  Rxd2 {[%clk 0:00:51]} 31. Qc6 {[%clk 0:00:03]}  Rdd1 {[%clk 0:00:50]} 32. Qd7+ {[%clk 0:00:02]}  Kh6 {[%clk 0:00:50]} 33. Qd8 {[%clk 0:00:02]}  Rh1# {[%clk 0:00:50]} 0-1


[Site "https://www.chess.com"]